bitfinex-derivatives/quotes_ETHF0:USTF0_20250904
["timestamp","ask_amount","ask_price","bid_price","bid_amount"]
[1757000591316,1.5426,4310.4,4310.3,1.397]
[1757000591516,2.6946,4310.4,4310.3,1.152]
[1757000591709,2.6946,4310.4,4310.0,0.4921]
[1757000591911,1.5426,4310.2,4310.1,1.397]
[1757000592216,2.6946,4310.2,4310.1,0.245]
[1757000592516,2.6946,4310.2,4310.1,1.9328]
[1757000592712,1.5426,4310.2,4310.1,2.1778]
[1757000592906,3.2078,4310.8,4310.1,1.8168]
[1757000593109,3.9809,4310.8,4310.7,0.7808]
[1757000593311,3.9809,4310.8,4310.7,2.9688]
[1757000593519,4.7504,4310.8,4310.7,2.9688]
[1757000593813,5.9024,4310.8,4310.7,2.9688]
[1757000594015,4.7504,4310.8,4310.7,2.9688]
[1757000594416,0.7695,4310.7,4310.6,1.5718]
[1757000594612,1.5426,4310.7,4310.6,1.8168]
[1757000595011,1.5426,4310.7,4310.6,2.9688]
[1757000595215,1.5426,4310.7,4310.6,2.1778]
[1757000595417,1.5426,4310.7,4310.6,0.245]
[1757000595418,2.6946,4310.7,4310.6,0.245]
[1757000595814,1.5426,4310.7,4310.4,0.245]
[1757000596020,2.9347,4310.5,4310.4,0.245]
[1757000596317,2.9347,4310.5,4310.2,0.245]
[1757000596515,2.6946,4310.2,4310.1,0.245]
[1757000597217,2.6946,4310.2,4309.6,1.152]
[1757000597418,0.7731,4309.8,4309.7,2.9688]
[1757000597815,2.6946,4309.8,4309.7,2.1778]
[1757000598221,1.5426,4309.8,4309.7,2.1778]
[1757000599320,1.5426,4309.8,4309.7,2.9688]
[1757000599521,0.7731,4309.8,4309.7,2.9688]
[1757000599722,2.6971,4309.8,4309.7,2.9688]
[1757000600520,1.5426,4309.8,4309.7,2.9688]
[1757000601715,1.1545,4310.1,4309.7,1.8168]
[1757000601921,4.7504,4310.3,4310.2,1.9328]
[1757000602117,4.7504,4310.3,4310.2,2.9678]
[1757000602322,3.2078,4310.9,4310.2,2.9678]
[1757000602622,0.7731,4310.4,4310.3,2.7238]
[1757000603320,3.2078,4310.9,4310.3,1.5718]
[1757000603515,3.2078,4310.9,4310.4,1.152]
[1757000603819,4.7504,4310.9,4310.8,1.9328]
[1757000604027,5.9049,4310.9,4310.8,2.1768]
[1757000604421,5.9049,4310.9,4310.1,1.152]
[1757000604624,5.9049,4310.9,4310.2,0.244]
[1757000604819,0.7695,4310.4,4310.3,0.244]
[1757000605022,1.5426,4310.4,4310.3,0.244]
[1757000605224,2.6971,4310.4,4310.3,0.244]
[1757000605727,1.525,4309.9,4309.8,4.0197]
[1757000605921,1.525,4309.9,4309.8,4.2637]
[1757000606120,2.7126,4309.9,4309.8,4.2637]
[1757000606325,1.525,4309.9,4309.8,6.251]
[1757000606526,1.1876,4310.3,4309.8,6.251]
[1757000606721,5.36638939,4310.7,4309.9,1.1885]
[1757000606929,5.36638939,4310.7,4310.1,1.1885]
[1757000607130,0.7396,4310.3,4310.2,3.0432]
[1757000607426,1.525,4310.3,4310.2,3.0432]
[1757000607925,2.7126,4310.3,4310.2,2.2444]
[1757000608124,5.9204,4310.3,4310.2,0.244]
[1757000608324,5.9204,4310.3,4309.8,1.1885]
[1757000608325,0.7396,4309.7,4309.6,2.7992]
[1757000608525,0.7396,4309.7,4309.6,3.0432]
[1757000608726,3.2078,4310.3,4310.0,0.4581]
[1757000608918,3.9474,4310.3,4310.2,2.0004]
[1757000609125,4.7328,4310.3,4310.2,2.0004]
[1757000609730,4.7328,4310.3,4310.2,2.7992]
[1757000609926,3.9474,4310.3,4310.2,2.7992]
[1757000610526,3.2078,4310.8,4310.2,1.6107]
[1757000610727,4.7328,4310.8,4310.7,2.0004]
[1757000611326,5.9204,4310.8,4310.7,2.0004]
[1757000611932,2.7126,4310.1,4310.0,1.6466]
[1757000612126,4.7328,4310.1,4310.0,2.7025]
[1757000612326,3.9474,4310.1,4310.0,3.5013]
[1757000613331,0.7396,4310.1,4310.0,3.5013]
[1757000613532,4.7328,4310.6,4310.5,1.27]
[1757000613735,4.7328,4310.6,4310.5,3.2573]
[1757000613924,5.9204,4310.6,4310.0,0.4581]
[1757000614123,3.2078,4310.6,4310.0,0.4581]
[1757000614430,1.525,4310.1,4310.0,2.4585]
[1757000614631,1.525,4310.1,4310.0,2.7025]
[1757000614833,2.7126,4310.1,4310.0,2.7025]
[1757000615132,2.7126,4310.1,4310.0,1.4325]
[1757000615522,1.525,4310.1,4310.0,2.7025]
[1757000615721,1.525,4310.1,4310.0,3.5013]
[1757000616123,2.7126,4310.1,4310.0,2.2444]
[1757000617029,0.7396,4310.1,4310.0,3.5013]
[1757000617626,1.525,4310.1,4310.0,3.5013]
[1757000618029,1.525,4310.1,4310.0,3.2573]
[1757000618429,1.525,4310.1,4310.0,3.5013]
[1757000619439,2.70085447,4310.1,4310.0,3.5013]
[1757000622939,5.90865447,4310.1,4310.0,3.2573]
[1757000623139,1.1876,4310.0,4309.5,1.6806]
[1757000623335,7.09625447,4309.6,4309.5,0.8119]
[1757000623541,2.7126,4309.2,4309.1,2.91506485]
[1757000623739,2.70085447,4309.2,4309.1,0.244]
[1757000623939,2.70085447,4309.2,4308.8,4.10356485]
[1757000624149,1.525,4308.8,4308.7,4.91546485]
[1757000624342,1.525,4308.8,4308.7,5.95826485]
[1757000624545,2.7126,4308.8,4308.7,3.0432]
[1757000624842,2.7126,4308.8,4308.7,2.7992]
[1757000625037,2.7126,4308.8,4308.7,2.0004]
[1757000625435,1.525,4308.4,4308.3,2.0004]
[1757000625638,3.88845447,4308.4,4308.3,0.244]
[1757000625839,3.88845447,4308.4,4308.3,2.2444]
[1757000626949,3.88845447,4308.4,4308.3,2.0004]
[1757000627547,2.7126,4308.4,4308.3,2.0004]
[1757000627746,1.525,4308.4,4308.3,2.0004]
[1757000628850,1.525,4308.4,4308.3,2.7992]
[1757000629254,2.7126,4308.4,4308.3,2.0004]
[1757000629855,1.525,4308.4,4308.3,2.7992]
[1757000631856,0.7396,4308.4,4308.3,2.7992]
[1757000632053,3.2078,4308.5,4308.4,1.1885]
[1757000632253,3.9474,4308.5,4308.4,3.0432]
[1757000633052,4.7328,4308.5,4308.4,3.0432]
[1757000633250,1.525,4308.2,4308.1,1.1885]
[1757000633445,2.7126,4308.2,4308.1,1.4325]
[1757000633646,2.7126,4308.2,4308.1,2.2444]
[1757000633946,2.7126,4308.2,4308.1,2.0004]
[1757000634148,2.7126,4308.2,4308.1,2.2444]
[1757000634451,2.7126,4308.2,4307.0,0.4581]
[1757000634452,1.525,4308.2,4307.0,0.4581]
[1757000634649,5.9204,4307.6,4307.0,0.4581]
[1757000634847,1.1876,4307.5,4307.2,1.1885]
[1757000635058,1.525,4307.3,4307.2,2.0004]
[1757000635346,2.7126,4307.3,4307.2,2.0004]
[1757000635548,2.7126,4307.3,4307.1,0.244]
[1757000635760,1.535,4307.1,4307.0,2.1017]
[1757000635950,5.8882,4307.1,4307.0,2.1017]
[1757000636253,4.7428,4307.1,4307.0,3.3217]
[1757000636455,3.2078,4307.6,4307.5,1.9505]
[1757000636651,3.2078,4307.6,4307.5,3.0777]
[1757000637454,3.2078,4307.6,4307.5,3.3217]
[1757000637847,3.2078,4307.6,4307.5,2.709]
[1757000638047,1.1614,4307.9,4307.5,1.7433]
[1757000638243,0.4794,4308.0,4307.5,1.7433]
[1757000638450,1.1614,4307.9,4307.5,1.7433]
[1757000638653,3.2078,4308.1,4308.0,1.4993]
[1757000638860,5.9042,4308.1,4308.0,1.7433]
[1757000639060,3.2078,4308.1,4308.0,1.7433]
[1757000639355,3.2078,4308.1,4308.0,2.1945]
[1757000639859,3.2078,4308.1,4308.0,3.3217]
[1757000640951,5.1326,4308.1,4308.0,2.8705]
[1757000642563,3.2078,4308.1,4308.0,2.8705]
[1757000643250,5.1326,4308.1,4308.0,2.8705]
[1757000645149,5.9042,4308.1,4308.0,2.8705]
[1757000647159,5.9042,4308.1,4308.0,0.7305]
[1757000647360,5.9042,4308.1,4308.0,0.9745]
[1757000647763,3.2078,4308.1,4308.0,3.3217]
[1757000651250,5.1326,4308.1,4308.0,2.8705]
[1757000652156,5.9042,4308.1,4308.0,2.8705]
[1757000654165,5.9042,4308.1,4308.0,1.7433]
[1757000654867,0.4794,4308.0,4307.9,0.7305]
[1757000655066,2.0144,4308.0,4307.9,0.9745]
[1757000655362,2.0144,4308.0,4307.4,1.1272]
[1757000655554,0.4794,4307.0,4306.9,3.64556485]
[1757000655760,3.1758,4307.0,4306.9,3.88956485]
[1757000656066,1.535,4306.8,4306.7,2.91506485]
[1757000656263,2.6964,4306.8,4306.7,3.15906485]
[1757000656565,1.535,4306.6,4306.5,2.91506485]
[1757000656765,1.535,4306.6,4306.5,0.244]
[1757000656965,2.6964,4306.6,4306.5,0.244]
[1757000657767,2.4124,4306.5,4306.0,32.025]
[1757000657964,1.9248,4306.1,4306.0,32.025]
[1757000658161,1.9248,4306.1,4306.0,32.269]
[1757000659358,1.9248,4306.1,4306.0,33.3962]
[1757000659564,1.9248,4306.1,4306.0,32.269]
[1757000660164,1.9248,4306.1,4306.0,32.025]
[1757000660360,1.9248,4306.1,4306.0,32.269]
[1757000661064,6.3836,4306.5,4306.4,1.4993]
[1757000661269,2.6964,4306.1,4306.0,32.025]
[1757000661468,2.6964,4306.1,4306.0,32.269]
[1757000662357,1.9248,4306.1,4306.0,33.3962]
[1757000662563,1.473,4306.4,4306.3,2.6265]
[1757000662762,1.473,4306.4,4306.3,2.8705]
[1757000663169,2.6344,4306.4,4306.3,2.8705]
[1757000664063,3.406,4306.4,4306.3,2.8705]
[1757000664864,2.6964,4306.4,4306.3,2.8705]
[1757000665079,1.1614,4306.3,4306.0,32.025]
[1757000665271,2.6964,4306.1,4306.0,32.025]
[1757000665462,2.6964,4306.1,4306.0,32.269]
[1757000666160,2.6964,4306.1,4306.0,33.4666]
[1757000666769,0.1159,4306.3,4306.2,1.512]
[1757000666969,0.1159,4306.3,4306.2,2.9536]
[1757000667370,2.0156,4306.3,4306.2,2.9536]
[1757000668463,2.7417,4306.3,4306.2,1.756]
[1757000668974,2.7417,4306.3,4306.2,2.9536]
[1757000669271,2.0156,4306.3,4306.2,2.9536]
[1757000669774,0.1159,4306.3,4306.2,2.9536]
[1757000669963,2.0156,4306.3,4306.2,2.7096]
[1757000670163,2.0156,4306.3,4306.2,2.9536]
[1757000670662,2.7417,4306.3,4306.2,2.9536]
[1757000670867,2.7417,4306.3,4306.2,1.756]
[1757000671270,2.7417,4306.3,4306.2,1.512]
[1757000671470,2.7417,4306.3,4306.2,1.756]
[1757000671779,2.7417,4306.3,4306.2,1.01]
[1757000673176,2.7417,4306.3,4306.2,0.766]
[1757000673376,2.7417,4306.3,4306.2,1.01]
[1757000674877,2.7417,4306.3,4306.2,1.756]
[1757000675277,2.7417,4306.3,4306.2,2.9536]
[1757000675678,2.7417,4306.3,4306.2,1.756]
[1757000676974,2.7417,4306.3,4306.2,2.9536]
[1757000678784,2.7417,4306.3,4306.2,1.756]
[1757000679879,2.7417,4306.3,4306.2,1.6868]
[1757000680986,2.0156,4306.3,4306.2,2.4011]
[1757000681285,1.2548,4306.3,4306.2,2.4011]
[1757000681477,2.0156,4306.3,4306.2,2.4011]
[1757000682476,2.0156,4306.3,4306.2,1.6868]
[1757000682673,1.4869,4306.1,4306.0,32.025]
[1757000682877,2.6258,4306.1,4306.0,32.269]
[1757000683883,0.1159,4306.3,4305.0,6.12286485]
[1757000683884,2.6258,4305.7,4305.0,6.12286485]
[1757000684185,2.6258,4305.7,4305.1,0.47624999]
[1757000684479,0.7608,4305.1,4305.0,3.9738]
[1757000684683,2.6258,4305.1,4305.0,4.2178]
[1757000684886,2.6258,4304.6,4304.5,3.9738]
[1757000685186,2.6258,4304.6,4304.5,4.2178]
[1757000685384,2.6258,4304.6,4304.5,0.766]
[1757000685689,2.6258,4304.6,4304.5,1.01]
[1757000686183,2.6258,4304.6,4304.5,0.766]
[1757000686388,1.8997,4304.1,4304.0,4.95095728]
[1757000686689,1.1389,4304.1,4304.0,5.90925728]
[1757000687186,2.6258,4304.1,4304.0,3.9738]
[1757000687382,2.6258,4304.1,4304.0,4.2178]
[1757000687592,2.6258,4304.1,4304.0,1.01]
[1757000688086,0.7608,4303.6,4303.5,4.7198]
[1757000688284,1.8997,4303.6,4303.5,4.7198]
[1757000688482,1.1389,4303.9,4303.6,0.7143]
[1757000688683,1.1389,4303.9,4303.8,2.2263]
[1757000689192,1.8997,4303.9,4303.8,2.2263]
[1757000690993,1.8997,4303.9,4303.8,1.512]
[1757000691491,2.6258,4303.9,4303.8,1.512]
[1757000692089,2.6258,4303.9,4303.8,0.766]
[1757000692790,2.6258,4303.9,4303.8,1.512]
[1757000693192,0.1159,4304.1,4303.8,1.512]
[1757000693388,0.1159,4304.1,4304.0,9.62444334]
[1757000693686,0.1159,4304.1,4304.0,9.86844334]
[1757000694291,0.1159,4304.1,4304.0,5.6781]
[1757000699592,3.2078,4304.9,4304.8,1.5456]
[1757000699593,5.1011,4304.9,4304.8,1.5456]
[1757000699788,5.8467,4304.9,4304.8,1.7896]
[1757000699990,5.8467,4304.9,4304.8,1.5456]
[1757000700193,5.8467,4304.9,4304.8,1.7896]
[1757000700593,1.1316,4305.2,4304.8,2.3541]
[1757000700785,2.6389,4305.2,4305.1,0.7802]
[1757000700991,2.6389,4305.2,4305.1,1.0242]
[1757000701188,2.6389,4305.2,4305.1,1.7896]
[1757000702189,5.5073,4305.2,4304.5,3.2078]
[1757000702393,2.6389,4304.6,4304.5,3.988]
[1757000702691,2.6389,4304.6,4304.5,4.232]
[1757000702891,2.6389,4304.6,4304.5,4.9974]
[1757000703594,2.6389,4304.6,4304.5,4.7534]
[1757000703787,2.6389,4304.6,4304.5,3.4518]
[1757000703985,2.6389,4304.6,4304.5,4.9974]
[1757000704596,2.6389,4304.6,4304.5,1.7896]
[1757000705297,2.6389,4304.6,4304.5,1.0242]
[1757000706596,2.6389,4304.6,4304.0,3.2078]
[1757000706792,1.1316,4304.4,4304.1,1.0242]
[1757000706996,2.6389,4304.2,4304.1,1.7896]
[1757000708294,1.8933,4304.2,4304.1,2.3541]
[1757000708501,1.1316,4304.2,4304.1,2.3541]
[1757000708794,2.3308,4305.0,4304.9,1.5456]
[1757000708998,2.3308,4305.0,4304.9,2.3541]
[1757000709392,2.3308,4305.0,4304.9,1.7896]
[1757000710498,1.1316,4304.9,4304.5,3.2078]
[1757000710795,2.6389,4304.6,4304.5,3.2078]
[1757000711106,1.1316,4304.4,4304.0,4.7534]
[1757000711293,1.8933,4304.4,4304.3,1.5456]
[1757000711601,1.8933,4304.4,4304.3,2.96822378]
[1757000711895,1.1316,4304.4,4304.3,3.53272378]
[1757000712103,1.8933,4304.8,4304.7,1.5456]
[1757000712297,1.1316,4304.8,4304.7,3.53272378]
[1757000712603,1.1316,4305.5,4305.4,2.1101]
[1757000712803,1.1316,4305.5,4305.4,3.53272378]
[1757000713193,3.2078,4306.1,4305.4,2.96822378]
[1757000713400,1.8933,4305.9,4305.8,1.5456]
[1757000713595,1.8933,4305.9,4305.8,1.7896]
[1757000713801,2.6389,4305.9,4305.8,1.7896]
[1757000714795,3.0764,4305.5,4305.4,0.7802]
[1757000714996,3.0764,4305.5,4305.4,1.0242]
[1757000717592,2.6389,4305.2,4305.1,3.2078]
[1757000717793,0.7617,4304.6,4304.5,7.66846485]
[1757000717997,1.1316,4304.9,4304.8,2.1101]
[1757000718205,1.1316,4304.9,4304.8,3.53272378]
[1757000718702,2.6389,4304.9,4304.8,2.72422378]
[1757000718902,2.6389,4304.9,4304.8,1.7896]
[1757000719102,1.8933,4304.9,4304.8,1.7896]
[1757000719300,1.8933,4304.9,4304.8,2.324]
[1757000719601,2.3308,4305.0,4304.9,1.5456]
[1757000719901,0.4375,4305.5,4304.9,2.08]
[1757000720105,2.3308,4305.5,4305.4,2.72422378]
[1757000720304,2.3308,4305.5,4305.4,2.96822378]
[1757000721007,1.5691,4305.5,4305.4,3.50262378]
[1757000721305,2.3308,4305.5,4305.4,2.96822378]
[1757000722595,1.5889,4306.0,4305.5,0.5344]
[1757000722797,4.38642378,4306.9,4305.9,6.46642378]
[1757000723107,2.6389,4306.3,4306.2,1.95882378]
[1757000723406,2.6389,4306.3,4306.2,2.96722378]
[1757000723600,2.6389,4306.3,4305.9,3.2078]
[1757000723799,1.61612378,4306.5,4305.9,3.2078]
[1757000723800,3.0764,4306.0,4305.9,3.2078]
[1757000723999,3.0764,4306.0,4305.9,3.4508]
[1757000724401,3.0764,4306.0,4305.9,4.9964]
[1757000724703,1.5691,4306.0,4305.9,5.5308]
[1757000725407,0.4375,4306.5,4305.9,4.9964]
[1757000725605,1.8933,4306.4,4306.3,2.72422378]
[1757000725911,1.8933,4306.4,4306.3,2.96722378]
[1757000726410,2.6389,4306.4,4306.3,2.96722378]
[1757000726908,1.865,4306.4,4306.3,1.7439]
[1757000727100,1.1424,4306.9,4306.3,3.44752378]
[1757000727302,1.8758,4306.9,4306.8,2.67952378]
[1757000727502,2.5878,4306.9,4306.8,2.92252378]
[1757000728005,2.5878,4306.9,4306.8,1.7439]
[1757000728414,1.1424,4306.9,4306.8,2.2689]
[1757000728711,0.4375,4307.5,4306.9,1.5009]
[1757000729007,1.8758,4307.3,4307.2,5.88732378]
[1757000729309,2.5878,4307.3,4307.2,4.2213]
[1757000730809,2.5878,4307.3,4307.2,3.4508]
[1757000731113,2.5878,4307.3,4307.2,0.243]
[1757000731814,1.8789,4307.0,4306.9,0.7705]
[1757000732016,1.8789,4307.0,4306.9,1.0135]
[1757000732212,1.17862378,4308.2,4306.9,1.0135]
[1757000732213,1.1709,4308.0,4307.9,1.5009]
[1757000732513,3.0253,4308.0,4307.9,2.92252378]
[1757000732814,3.0253,4308.0,4307.9,1.5009]
[1757000733014,3.0253,4308.0,4307.9,1.0135]
[1757000733311,3.0253,4308.0,4307.9,1.97197055]
[1757000734514,1.1424,4308.0,4307.9,2.49697055]
[1757000734824,2.3093,4308.5,4308.4,1.5009]
[1757000735007,2.3093,4308.5,4308.4,1.7439]
[1757000735415,1.5759,4308.5,4308.4,1.7439]
[1757000735616,3.0213,4308.5,4308.4,0.243]
[1757000735808,3.0213,4308.5,4308.1,3.2078]
[1757000736008,1.1424,4308.4,4308.2,0.243]
[1757000736313,1.1424,4308.2,4308.1,3.2078]
[1757000736613,2.5878,4308.2,4308.1,0.243]
[1757000736808,3.0213,4308.0,4307.9,0.22807055]
[1757000737009,3.0213,4308.0,4307.9,0.243]
[1757000737314,3.0213,4308.0,4307.9,0.47109375]
[1757000737513,1.4454,4307.2,4307.1,3.2078]
[1757000737703,2.5878,4307.2,4307.1,3.4508]
[1757000739609,2.5878,4307.2,4307.1,0.243]
[1757000739810,0.4335,4307.0,4306.6,3.2078]
[1757000740015,3.0213,4307.0,4306.9,0.7705]
[1757000740316,3.0213,4307.0,4306.9,1.0135]
[1757000740515,3.0213,4307.0,4306.9,1.7439]
[1757000740814,0.7034,4307.1,4307.0,2.0259]
[1757000741011,1.8458,4307.1,4307.0,2.0259]
[1757000741405,0.7034,4307.1,4307.0,2.0259]
[1757000741612,1.1424,4307.4,4307.0,6.25808]
[1757000741802,1.1424,4307.4,4307.3,7.38962551]
[1757000742116,1.1424,4307.4,4307.3,7.86478551]
[1757000742316,0.4335,4307.5,4307.3,7.86478551]
[1757000742518,0.4335,4308.0,4307.4,0.23216]
[1757000742819,1.5759,4308.0,4307.9,3.2078]
[1757000743012,1.1669,4308.5,4307.9,3.86856]
[1757000743205,1.1424,4308.3,4307.9,3.4508]
[1757000743409,1.1424,4308.4,4308.1,0.41774]
[1757000743615,1.1424,4308.4,4308.2,4.84255551]
[1757000744218,1.1424,4308.4,4308.2,4.42482551]
[1757000745312,0.4335,4309.0,4308.3,0.23210999]
[1757000745514,1.5759,4309.0,4308.9,4.18182551]
[1757000745814,1.5759,4309.0,4308.9,4.42482551]
[1757000747516,3.0213,4309.0,4308.9,0.243]
[1757000747819,2.5878,4308.9,4308.8,3.2078]
[1757000748019,2.5878,4308.9,4308.8,3.4508]
[1757000748214,1.1424,4308.9,4308.8,3.4508]
[1757000749814,1.8758,4308.9,4308.8,3.4508]
[1757000750818,2.5878,4308.9,4308.8,3.4508]
[1757000751819,2.5878,4308.9,4308.8,0.243]
[1757000754716,2.5878,4308.9,4308.8,4.8961353]
[1757000754922,1.1424,4309.4,4308.8,8.8961353]
[1757000755113,0.4335,4310.0,4309.4,2.5697]
[1757000755313,0.4335,4310.0,4309.5,2.8127]
[1757000755518,1.8789,4310.0,4309.9,0.7705]
[1757000755722,1.4454,4310.0,4309.9,1.7439]
[1757000755919,1.4454,4310.0,4309.9,2.8452]
[1757000756926,5.0969,4310.0,4309.9,0.243]
[1757000757120,6.1802,4310.0,4309.9,0.243]
[1757000758210,10.1802,4310.0,4309.1,3.2078]
[1757000758418,2.596,4309.2,4309.1,3.2078]
[1757000758621,2.596,4309.2,4309.1,3.4508]
[1757000758820,2.596,4309.2,4309.1,4.2149]
[1757000759825,2.596,4309.2,4309.1,6.0648]
[1757000760621,0.8352,4309.9,4309.1,4.9635]
[1757000760822,2.596,4309.8,4309.7,0.7641]
[1757000761021,2.596,4309.8,4309.7,1.0071]
[1757000761218,2.596,4309.8,4309.7,0.243]
[1757000764329,1.0833,4309.7,4309.1,3.2078]
[1757000764527,2.596,4309.3,4309.2,1.7557]
[1757000764829,2.596,4309.3,4309.2,2.857]
[1757000765328,1.0833,4309.2,4309.1,3.2078]
[1757000765528,2.596,4309.2,4309.1,3.4508]
[1757000766525,2.596,4309.2,4309.1,4.2149]
[1757000767026,1.8488,4309.2,4309.1,6.0648]
[1757000767329,1.8488,4309.4,4309.3,2.614]
[1757000767523,2.596,4309.4,4309.3,1.5127]
[1757000767729,1.0833,4309.3,4309.1,3.4508]
[1757000768024,2.596,4309.2,4309.1,4.2149]
[1757000768229,1.8488,4309.2,4309.1,6.0648]
[1757000768728,0.7655,4309.2,4309.1,10.7179353]
[1757000768931,1.8488,4309.8,4309.7,0.7641]
[1757000769132,2.596,4309.8,4309.7,2.857]
[1757000769334,3.9733,4310.0,4309.9,1.5127]
[1757000769531,5.8038,4310.0,4309.9,2.614]
[1757000769734,5.8038,4310.0,4309.9,1.5127]
[1757000770035,6.2475,4310.0,4309.9,0.30069954]
[1757000770540,10.2475,4310.0,4309.9,0.54369954]
[1757000772137,10.2475,4310.0,4309.9,0.54430874]
[1757000775144,10.2475,4310.0,4309.9,0.30130874]
[1757000778845,10.2475,4310.0,4309.9,0.30167303]
[1757000779343,1.5127,4308.8,4308.7,3.67916485]
[1757000779532,2.31751867,4308.8,4308.7,1.0071]
[1757000779945,2.31751867,4308.8,4308.7,2.857]
[1757000780939,1.23421867,4308.8,4308.7,2.857]
[1757000781144,2.31751867,4308.8,4308.7,2.857]
[1757000782241,2.31751867,4308.8,4308.7,0.243]
[1757000782435,2.31751867,4308.8,4308.7,1.0071]
[1757000782837,2.31751867,4308.8,4308.4,4.01636485]
[1757000783037,0.4437,4308.5,4308.4,2.91506485]
[1757000783241,2.596,4308.5,4308.4,2.857]
[1757000783548,1.5127,4308.5,4308.4,2.857]
[1757000784550,2.596,4308.5,4308.4,2.857]
[1757000785854,0.4437,4309.0,4308.5,0.4475]
[1757000786148,2.5316,4308.9,4308.8,1.8409]
[1757000786345,2.5316,4308.9,4308.8,2.0839]
[1757000786741,3.2078,4309.1,4308.8,7.4656353]
[1757000786945,5.0223,4309.6,4309.5,2.5695]
[1757000787146,3.8976,4309.6,4309.5,3.26]
[1757000787350,0.6898,4309.6,4309.5,3.26]
[1757000787552,5.7394,4309.6,4309.5,3.26]
[1757000787846,2.5316,4309.6,4309.5,3.26]
[1757000788149,2.5316,4309.6,4309.5,0.243]
[1757000788346,2.5316,4309.6,4309.5,2.8125]
[1757000788744,2.5316,4309.6,4309.5,0.243]
[1757000789141,2.5316,4309.6,4309.5,1.7088]
[1757000789347,2.5316,4309.6,4309.5,2.8125]
[1757000791148,2.5316,4309.6,4309.5,1.7088]
[1757000791343,1.4069,4308.9,4308.8,4.38086485]
[1757000791548,0.6898,4309.1,4309.0,3.017]
[1757000791739,1.5604,4309.5,4309.0,3.259]
[1757000791940,0.6898,4309.2,4309.1,1.1037]
[1757000792145,0.6898,4309.2,4309.0,0.6895]
[1757000792340,0.6898,4309.2,4309.1,2.5695]
[1757000793147,2.5316,4309.2,4309.1,2.5695]
[1757000793652,2.5316,4309.2,4309.0,0.242]
[1757000794053,1.4069,4309.2,4309.0,0.242]
[1757000794357,2.5316,4309.1,4309.0,0.9792]
[1757000794952,2.5316,4309.1,4309.0,2.0829]
[1757000795152,2.5316,4309.1,4309.0,2.8115]
[1757000795747,2.5316,4309.1,4309.0,0.242]
[1757000795954,2.5316,4308.7,4308.6,5.7773]
[1757000796155,0.6898,4308.7,4308.6,6.0193]
[1757000796356,0.4357,4309.5,4308.6,4.9156]
[1757000796650,2.5316,4309.4,4309.3,0.7372]
[1757000796955,2.5316,4309.4,4309.2,0.242]
[1757000797156,1.1247,4309.3,4309.2,0.242]
[1757000797350,2.5316,4309.3,4309.2,0.242]
[1757000797654,2.5316,4309.3,4309.2,0.9792]
[1757000797856,2.5316,4309.3,4309.2,2.0829]
[1757000798055,2.5316,4309.3,4309.2,2.8115]
[1757000798259,0.6898,4309.3,4309.2,2.8115]
[1757000798656,2.5316,4309.3,4309.2,1.7078]
[1757000798851,2.5316,4309.3,4309.2,0.242]
[1757000799463,2.5316,4309.3,4309.2,0.9792]
[1757000799964,2.5316,4309.3,4309.2,2.0829]
[1757000800257,2.5316,4309.3,4309.2,2.8115]
[1757000800656,2.5316,4309.3,4309.2,0.242]
[1757000800857,1.1247,4309.2,4308.3,4.01876485]
[1757000801058,0.6898,4308.4,4308.3,5.48456485]
[1757000801259,0.6898,4308.4,4308.3,2.8115]
[1757000801461,1.8145,4308.6,4308.5,3.017]
[1757000801655,4.3325,4309.3,4308.7,1.4658]
[1757000801854,5.0223,4309.3,4309.2,1.4658]
[1757000802056,5.0223,4309.3,4309.2,0.242]
[1757000802057,5.7394,4309.3,4309.2,0.242]
[1757000803060,0.4357,4309.0,4308.7,0.242]
[1757000803261,2.5316,4308.8,4308.7,0.242]
[1757000803457,5.7394,4308.8,4308.7,0.242]
[1757000805563,5.7394,4308.8,4308.7,0.9792]
[1757000805758,5.7394,4308.8,4308.7,0.242]
[1757000807959,2.5316,4308.8,4308.7,2.8115]
[1757000808157,1.1247,4309.2,4308.8,1.1037]
[1757000808356,2.5316,4309.2,4309.1,1.4658]
[1757000808562,2.5316,4309.2,4309.1,2.8115]
[1757000808758,2.5316,4309.2,4309.1,1.0715]
[1757000808965,2.5316,4309.2,4309.1,0.9792]
[1757000810071,2.5316,4309.2,4309.1,0.242]
[1757000811871,0.4357,4309.0,4308.3,3.61376485]
[1757000812072,1.1255,4308.5,4308.4,1.93988]
[1757000812273,2.2502,4308.5,4308.4,1.7078]
[1757000812673,2.2502,4308.5,4308.4,5.7078]
[1757000813867,2.9673,4308.5,4308.3,2.91506485]
[1757000814172,2.5316,4308.4,4308.0,0.242]
[1757000814566,5.7394,4308.1,4308.0,0.242]
[1757000814967,0.4357,4307.5,4307.4,2.91506485]
[1757000815171,2.9673,4307.5,4307.4,3.15706485]
[1757000815372,2.9673,4307.5,4307.4,0.242]
[1757000816174,2.9673,4307.5,4307.4,0.9792]
[1757000816776,2.492,4307.3,4307.2,2.91506485]
[1757000816967,1.4461,4307.3,4307.1,2.91506485]
[1757000817167,2.492,4307.2,4307.1,3.15706485]
[1757000817468,2.492,4307.2,4307.1,0.242]
[1757000817663,2.492,4307.2,4306.8,1.17736979]